[Event "V Copa Marcel Duchamp 2022"]
[Site "Montevideo"]
[Date "2022.02.18"]
[Round "8.24"]
[White "Siddeley, Hugh"]
[Black "Montiel Caceres, Helen"]
[Result "1-0"]
[ECO "E92"]
[WhiteElo "2000"]
[BlackElo "1625"]
[Annotator "ChessBase"]
[PlyCount "51"]
[EventDate "2022.02.12"]
[EventCountry "URU"]
[SourceTitle "playchess.com"]
[Source "ChessBase"]
[SourceQuality "1"]
[TimeControl "5400+30"]

1. d4 {[%emt 0:05:29]} Nf6 {[%emt 0:00:06]} 2. c4 {[%emt 0:00:04]} g6 {[%emt 0:00:04]} 3. Nc3 {[%emt 0:00:03]} Bg7 {[%emt 0:00:04]} 4. e4 {[%emt 0:00:04]} d6 {[%emt 0:00:02]} 5. Nf3 {[%emt 0:00:04]} O-O {[%emt 0:00:04]} 6. Be2 e5 {[%emt 0:00:13]} 7. Be3 {[%emt 0:00:06]} Nc6 {[%emt 0:00:03]} 8. d5 {[%emt 0:00:04]} Ne7 {[%emt 0:00:03]} 9. Nd2 {[%emt 0:00:11]} Ne8 {[%emt 0:00:07]} 10. b4 {[%emt 0:00:24]} f5 {[%emt 0:00:04]} 11. f3 {[%emt 0:00:04]} f4 {[%emt 0:00:48]} 12. Bf2 {[%emt 0:00:03]} g5 {[%emt 0:06:55]} 13. c5 {[%emt 0:02:52]} Rf7 {[%emt 0:06:07]} 14. Nc4 {[%emt 0:01:21]} Bd7 {[%emt 0:10:23]} 15. a4 {[%emt 0:02:01]} b6 {[%emt 0:25:14]} 16. c6 {[%emt 0:08:53]} Bc8 {[%emt 0:01:51]} 17. a5 {[%emt 0:00:15]} g4 {[%emt 0:02:59]} 18. axb6 {[%emt 0:01:07]} gxf3 {[%emt 0:00:21]} 19. gxf3 {[%emt 0:02:04]} cxb6 {[%emt 0:00:17]} 20. Nxb6 {[%emt 0:03:03]} Rb8 {[%emt 0:00:05]} 21. Rxa7 {[%emt 0:08:51]} Rxb6 {[%emt 0:00:21]} 22. c7 {[%emt 0:00:06]} Qd7 {[%emt 0:00:19]} 23. Bxb6 {[%emt 0:00:08]} Qh3 {[%emt 0:00:13]} 24. Bf1 {[%emt 0:02:46]} Qh4+ {[%emt 0:00:12]} 25. Bf2 {[%emt 0:00:06]} Qh5 {[%emt 0:00:08]} 26. b5 {[%emt 0:00:15]} 1-0

[Event "V Copa Marcel Duchamp 2022"]
[Site "Montevideo"]
[Date "2022.02.18"]
[Round "8.25"]
[White "Lavandeira, Juan Facundo"]
[Black "Gaye, Gustavo"]
[Result "1/2-1/2"]
[ECO "A37"]
[WhiteElo "1520"]
[BlackElo "1990"]
[Annotator "ChessBase"]
[PlyCount "57"]
[EventDate "2022.02.12"]
[EventCountry "URU"]
[SourceTitle "playchess.com"]
[Source "ChessBase"]
[SourceQuality "1"]
[TimeControl "5400+30"]

1. c4 {[%emt 0:00:16]} g6 {[%emt 0:00:12]} 2. g3 {[%emt 0:00:05]} Bg7 {[%emt 0:00:17]} 3. Bg2 {[%emt 0:00:23]} c5 {[%emt 0:00:48]} 4. Nc3 {[%emt 0:00:20]} Nc6 {[%emt 0:01:02]} 5. Nf3 {[%emt 0:00:44]} d6 {[%emt 0:00:44]} 6. O-O {[%emt 0:01:44]} e6 {[%emt 0:00:32]} 7. a3 {[%emt 0:08:46]} Nge7 {[%emt 0:01:54]} 8. Rb1 {[%emt 0:02:40]} Rb8 {[%emt 0:02:00]} 9. b4 {[%emt 0:06:52]} b6 {[%emt 0:02:26]} 10. b5 {[%emt 0:00:30]} Na5 {[%emt 0:03:29]} 11. Qa4 {[%emt 0:08:10]} O-O {[%emt 0:12:54]} 12. Bb2 {[%emt 0:02:43]} d5 {[%emt 0:03:10]} 13. cxd5 {[%emt 0:03:22]} exd5 {[%emt 0:01:48]} 14. d4 {[%emt 0:08:37]} Nc4 {[%emt 0:17:45]} 15. Ba1 {[%emt 0:24:07]} Be6 {[%emt 0:10:22]} 16. e3 {[%emt 0:10:06]} cxd4 {[%emt 0:05:34]} 17. exd4 {[%emt 0:00:18]} Qd7 {[%emt 0:01:48]} 18. Rfe1 {[%emt 0:05:51]} Rbc8 {[%emt 0:05:59]} 19. Rbd1 {[%emt 0:03:51]} Rfe8 {[%emt 0:15:15]} 20. Qb3 {[%emt 0:02:56]} Qd6 {[%emt 0:03:54]} 21. Nb1 {[%emt 0:00:41]} Rc7 {[%emt 0:01:06]} 22. Bc3 {[%emt 0:00:12]} Rec8 {[%emt 0:01:01]} 23. Bb4 Qd7 24. a4 Nf5 25. Ne5 Ne7 26. Nf3 Bf8 27. Ne5 Nxe5 28. dxe5 d4 29. Qa3 1/2-1/2

[Event "V Copa Marcel Duchamp 2022"]
[Site "Montevideo"]
[Date "2022.02.18"]
[Round "8.26"]
[White "Perez Selios, Luis"]
[Black "Benitez, Andres"]
[Result "0-1"]
[ECO "D00"]
[WhiteElo "1429"]
[BlackElo "1978"]
[Annotator "ChessBase"]
[PlyCount "74"]
[EventDate "2022.02.12"]
[EventCountry "URU"]
[SourceTitle "playchess.com"]
[Source "ChessBase"]
[SourceQuality "1"]
[TimeControl "5400+30"]

1. d4 {[%emt 0:00:04]} d5 {[%emt 0:00:51]} 2. Bf4 {[%emt 0:02:23]} Nf6 {[%emt 0:00:05]} 3. e3 {[%emt 0:00:25]} e6 {[%emt 0:00:13]} 4. Nf3 {[%emt 0:00:24]} c5 {[%emt 0:00:15]} 5. c3 {[%emt 0:00:37]} Bd6 {[%emt 0:00:28]} 6. dxc5 {[%emt 0:01:34]} Bxf4 {[%emt 0:00:55]} 7. exf4 {[%emt 0:00:09]} Qc7 {[%emt 0:00:31]} 8. Nbd2 {[%emt 0:04:37]} O-O {[%emt 0:03:10]} 9. Bd3 {[%emt 0:00:37]} Qxf4 {[%emt 0:00:47]} 10. O-O {[%emt 0:00:31]} Qc7 {[%emt 0:00:41]} 11. b4 {[%emt 0:00:45]} e5 {[%emt 0:00:42]} 12. Be2 {[%emt 0:01:03]} Nc6 {[%emt 0:01:46]} 13. Qb1 {[%emt 0:03:48]} Bg4 {[%emt 0:02:29]} 14. Re1 {[%emt 0:01:03]} a6 {[%emt 0:08:00]} 15. a4 {[%emt 0:01:46]} Rfe8 {[%emt 0:05:44]} 16. Qb2 {[%emt 0:05:12]} Rad8 {[%emt 0:03:46]} 17. b5 {[%emt 0:03:12]} Nb8 {[%emt 0:04:19]} 18. Nb3 {[%emt 0:01:50]} Nfd7 {[%emt 0:08:59]} 19. Qa3 {[%emt 0:01:46]} Rc8 {[%emt 0:08:45]} 20. Qb4 {[%emt 0:01:01]} Be6 {[%emt 0:03:49]} 21. Rac1 {[%emt 0:03:47]} f6 {[%emt 0:03:06]} 22. c4 {[%emt 0:03:38]} d4 {[%emt 0:00:35]} 23. Bd3 {[%emt 0:00:11]} Nxc5 {[%emt 0:01:30]} 24. Nxc5 {[%emt 0:00:14]} Qxc5 {[%emt 0:00:14]} 25. Qb1 {[%emt 0:00:08]} h6 {[%emt 0:01:41]} 26. Nd2 {[%emt 0:00:55]} Nd7 {[%emt 0:04:59]} 27. Be4 {[%emt 0:04:05]} Rc7 {[%emt 0:05:52]} 28. a5 {[%emt 0:00:25]} Nf8 {[%emt 0:01:55]} 29. Qd3 {[%emt 0:01:16]} axb5 {[%emt 0:01:11]} 30. cxb5 {[%emt 0:00:22]} Qxc1 {[%emt 0:01:04]} 31. Rxc1 {[%emt 0:00:16]} Rxc1+ {[%emt 0:00:03]} 32. Nf1 {[%emt 0:00:17]} Bc4 {[%emt 0:00:05]} 33. Bd5+ {[%emt 0:02:32]} Bxd5 {[%emt 0:00:06]} 34. Qa3 {[%emt 0:00:06]} Rec8 {[%emt 0:02:08]} 35. f3 {[%emt 0:00:31]} R8c2 {[%emt 0:00:56]} 36. a6 {[%emt 0:00:26]} bxa6 {[%emt 0:00:31]} 37. b6 {[%emt 0:00:06]} Rb1 {[%emt 0:01:19]} 0-1

[Event "V Copa Marcel Duchamp 2022"]
[Site "Montevideo"]
[Date "2022.02.18"]
[Round "8.27"]
[White "Escofet, Jaime"]
[Black "Torales, Agustin"]
[Result "1/2-1/2"]
[ECO "B33"]
[WhiteElo "1981"]
[BlackElo "1682"]
[Annotator "NA"]
[PlyCount "82"]
[EventDate "2022.02.12"]
[EventCountry "URU"]
[SourceTitle "playchess.com"]
[Source "ChessBase"]
[SourceQuality "1"]
[TimeControl "5400+30"]

1. e4 c5 2. Nf3 Nc6 3. d4 cxd4 4. Nxd4 Nf6 5. Nc3 e5 6. Ndb5 d6 7. Bg5 a6 8. Na3 b5 9. Nd5 Be7 10. Bxf6 Bxf6 11. c3 Bg5 12. Nc2 O-O 13. Be2 Ne7 14. Ncb4 Be6 15. O-O g6 16. a4 bxa4 17. Rxa4 a5 18. Nxe7+ Qxe7 19. Nd5 Qb7 20. b3 Bxd5 21. exd5 f5 22. Bc4 Bd8 23. Qe2 Rb8 24. Rb1 Qd7 25. Qa2 f4 26. b4 f3 27. g3 Qf5 28. Re1 axb4 29. Rxb4 Rxb4 30. cxb4 Bb6 31. Qb1 Qg4 32. Re4 Qg5 33. Qd1 h5 34. Bd3 Rc8 35. Rc4 Rxc4 36. Bxc4 Qg4 37. Bf1 h4 38. Qa4 Kf7 39. Qc6 Qxb4 40. Qd7+ Kf8 41. Qe6 Kg7 1/2-1/2

[Event "V Copa Marcel Duchamp 2022"]
[Site "Montevideo"]
[Date "2022.02.18"]
[Round "8.28"]
[White "Cayetano, Juan"]
[Black "Cordero, Daniela"]
[Result "0-1"]
[ECO "C01"]
[WhiteElo "1725"]
[BlackElo "2011"]
[Annotator "NA"]
[PlyCount "78"]
[EventDate "2022.02.12"]
[EventCountry "URU"]
[SourceTitle "playchess.com"]
[Source "ChessBase"]
[SourceQuality "1"]
[TimeControl "5400+30"]

1. e4 e6 2. d4 d5 3. exd5 exd5 4. Bd3 Nc6 5. c3 Bd6 6. Nf3 Bg4 7. O-O Nge7 8. Re1 Qd7 9. Be3 O-O 10. h3 Bf5 11. Nh4 Bxd3 12. Qxd3 f5 13. Bg5 h6 14. Bxe7 Nxe7 15. Nf3 Ng6 16. g3 Rae8 17. Nbd2 Qf7 18. Kg2 Re4 19. c4 c6 20. c5 Bc7 21. Nh2 Rxe1 22. Rxe1 f4 23. Kh1 fxg3 24. fxg3 Qf2 25. Ndf3 Rf6 26. Ng4 Qxf3+ 27. Qxf3 Rxf3 28. Re8+ Rf8 29. Re3 h5 30. Nh2 h4 31. Kg2 Bxg3 32. Nf3 Nf4+ 33. Kh1 Nxh3 34. Kg2 Nf4+ 35. Kh1 Ng6 36. Rb3 Rf7 37. Ng5 Re7 38. Ra3 Nf4 39. Nf3 Re2 0-1

[Event "V Copa Marcel Duchamp 2022"]
[Site "Montevideo"]
[Date "2022.02.18"]
[Round "8.29"]
[White "Castagnet, Carlos"]
[Black "Durante, Aurelio"]
[Result "0-1"]
[ECO "E20"]
[WhiteElo "1641"]
[BlackElo "1944"]
[Annotator "NA"]
[PlyCount "96"]
[EventDate "2022.02.12"]
[EventCountry "URU"]
[SourceTitle "playchess.com"]
[Source "ChessBase"]
[SourceQuality "1"]
[TimeControl "5400+30"]

1. d4 Nf6 2. c4 e6 3. Nc3 Bb4 4. Bd2 b6 5. Nf3 Bb7 6. e3 O-O 7. Be2 d6 8. Nb5 Bxd2+ 9. Qxd2 Nbd7 10. Nc3 Ne4 11. Nxe4 Bxe4 12. O-O f5 13. Ne1 Nf6 14. f3 Bb7 15. Nd3 Qe7 16. Rac1 Rad8 17. Qc3 c5 18. b4 Nd7 19. f4 Nf6 20. Nf2 Rd7 21. Rcd1 Rfd8 22. dxc5 dxc5 23. b5 Rxd1 24. Rxd1 Rxd1+ 25. Bxd1 Qd6 26. Qd3 Ne4 27. Qxd6 Nxd6 28. Be2 Kf7 29. Kf1 Kf6 30. g4 Be4 31. g5+ Ke7 32. Nd1 e5 33. Kf2 Bb1 34. Nc3 Ne4+ 35. Nxe4 fxe4 36. Ke1 exf4 37. exf4 Ke6 38. Bg4+ Kf7 39. a3 Bd3 40. Be2 Kg6 41. Bxd3 exd3 42. Kd2 Kf5 43. Kxd3 Kxf4 44. a4 h5 45. gxh6 gxh6 46. h3 h5 47. h4 Kf3 48. Kd2 Ke4 0-1

[Event "V Copa Marcel Duchamp 2022"]
[Site "Montevideo"]
[Date "2022.02.18"]
[Round "8.31"]
[White "Amaral, Francisco"]
[Black "Palacio, Enzo"]
[Result "1/2-1/2"]
[ECO "B92"]
[WhiteElo "1672"]
[BlackElo "1896"]
[Annotator "NA"]
[PlyCount "83"]
[EventDate "2022.02.12"]
[EventCountry "URU"]
[SourceTitle "playchess.com"]
[Source "ChessBase"]
[SourceQuality "1"]
[TimeControl "5400+30"]

1. e4 {[%emt 0:00:02]} c5 {[%emt 0:00:13]} 2. Nf3 {[%emt 0:00:04]} d6 {[%emt 0:00:32]} 3. d4 {[%emt 0:00:13]} cxd4 {[%emt 0:00:02]} 4. Nxd4 {[%emt 0:00:07]} Nf6 {[%emt 0:00:03]} 5. Nc3 {[%emt 0:00:05]} a6 {[%emt 0:00:02]} 6. Be2 {[%emt 0:00:11]} e5 {[%emt 0:00:12]} 7. Nb3 {[%emt 0:00:05]} Be7 {[%emt 0:00:04]} 8. Be3 {[%emt 0:03:07]} Be6 {[%emt 0:00:20]} 9. Nd5 {[%emt 0:01:15]} Nbd7 {[%emt 0:01:28]} 10. Nxe7 Qxe7 {[%emt 0:01:33]} 11. f3 {[%emt 0:04:19]} d5 {[%emt 0:03:40]} 12. exd5 {[%emt 0:04:40]} Nxd5 {[%emt 0:00:12]} 13. Qd2 {[%emt 0:01:42]} Nxe3 {[%emt 0:06:19]} 14. Qxe3 {[%emt 0:00:10]} Rc8 {[%emt 0:03:16]} 15. Bd3 {[%emt 0:02:05]} O-O {[%emt 0:04:48]} 16. O-O {[%emt 0:03:04]} f5 {[%emt 0:07:10]} 17. Rfd1 {[%emt 0:09:33]} Qf7 {[%emt 0:12:12]} 18. Rac1 {[%emt 0:07:14]} Rfd8 {[%emt 0:04:20]} 19. Re1 {[%emt 0:12:28]} g6 {[%emt 0:03:51]} 20. a3 {[%emt 0:12:36]} Re8 {[%emt 0:06:25]} 21. Nd2 {[%emt 0:00:13]} b5 {[%emt 0:04:18]} 22. a4 {[%emt 0:02:50]} Bc4 {[%emt 0:01:20]} 23. axb5 {[%emt 0:02:33]} axb5 {[%emt 0:00:40]} 24. b3 {[%emt 0:00:48]} Bxd3 {[%emt 0:00:58]} 25. Qxd3 {[%emt 0:00:32]} Rc5 {[%emt 0:03:22]} 26. c4 {[%emt 0:06:47]} Rec8 {[%emt 0:00:12]} 27. Rc2 {[%emt 0:01:35]} Qe6 {[%emt 0:01:59]} 28. Rec1 {[%emt 0:01:05]} Qc6 {[%emt 0:04:22]} 29. b4 {[%emt 0:05:29]} bxc4 {[%emt 0:01:28]} 30. Rxc4 {[%emt 0:02:11]} Rxc4 {[%emt 0:00:35]} 31. Rxc4 {[%emt 0:04:39]} Qb6+ {[%emt 0:01:04]} 32. Kf1 {[%emt 0:00:11]} Rxc4 {[%emt 0:01:27]} 33. Qxc4+ {[%emt 0:01:27]} Kg7 {[%emt 0:00:08]} 34. Nb3 {[%emt 0:00:29]} Qd6 {[%emt 0:02:39]} 35. Ke2 {[%emt 0:01:04]} Nf6 {[%emt 0:02:36]} 36. Qc5 {[%emt 0:03:32]} Qa6+ {[%emt 0:01:07]} 37. b5 {[%emt 0:00:12]} Qa2+ {[%emt 0:00:04]} 38. Nd2 {[%emt 0:00:09]} Nd5 {[%emt 0:00:11]} 39. g3 {[%emt 0:01:49]} e4 {[%emt 0:02:57]} 40. fxe4 {[%emt 0:01:29]} fxe4 {[%emt 0:00:01]} 41. Qc4 {[%emt 0:01:13]} Qxc4+ {[%emt 0:00:57]} 42. Nxc4 {[%emt 0:00:06]} 1/2-1/2

[Event "V Copa Marcel Duchamp 2022"]
[Site "Montevideo"]
[Date "2022.02.18"]
[Round "8.33"]
[White "Ressia, Lorenzo"]
[Black "Urrestarazu, Diego"]
[Result "0-1"]
[ECO "E71"]
[WhiteElo "1447"]
[BlackElo "1833"]
[Annotator "NA"]
[PlyCount "64"]
[EventDate "2022.02.12"]
[EventCountry "URU"]
[SourceTitle "playchess.com"]
[Source "ChessBase"]
[SourceQuality "1"]
[TimeControl "5400+30"]

1. d4 Nf6 2. c4 g6 3. Nc3 Bg7 4. e4 {[%emt 0:01:38]} d6 {[%emt 0:00:40]} 5. h3 {[%emt 0:00:00]} O-O {[%emt 0:00:35]} 6. Be3 {[%emt 0:00:00]} Nc6 {[%emt 0:01:29]} 7. g4 {[%emt 0:00:27]} e5 {[%emt 0:02:27]} 8. d5 {[%emt 0:00:02]} Nd4 {[%emt 0:01:57]} 9. Be2 {[%emt 0:07:42]} c6 {[%emt 0:05:28]} 10. Nf3 {[%emt 0:16:09]} Nxe2 {[%emt 0:06:51]} 11. Qxe2 {[%emt 0:00:27]} cxd5 {[%emt 0:00:25]} 12. cxd5 {[%emt 0:02:06]} Bd7 {[%emt 0:03:27]} 13. Qd2 {[%emt 0:06:06]} b5 {[%emt 0:03:12]} 14. a3 {[%emt 0:03:53]} a5 {[%emt 0:01:43]} 15. Qd3 {[%emt 0:01:01]} b4 {[%emt 0:05:27]} 16. Ne2 {[%emt 0:00:25]} Qb8 {[%emt 0:02:26]} 17. a4 {[%emt 0:00:47]} Bc8 {[%emt 0:02:47]} 18. Nd2 {[%emt 0:03:33]} Ba6 {[%emt 0:01:41]} 19. Nc4 {[%emt 0:00:47]} b3 {[%emt 0:04:10]} 20. Rc1 {[%emt 0:00:53]} Rc8 {[%emt 0:00:38]} 21. O-O {[%emt 0:00:54]} Qb4 {[%emt 0:03:15]} 22. g5 {[%emt 0:17:28]} Ne8 {[%emt 0:03:27]} 23. Bd2 {[%emt 0:04:06]} Bxc4 {[%emt 0:00:59]} 24. Qe3 {[%emt 0:01:16]} Qb7 {[%emt 0:03:29]} 25. Bc3 {[%emt 0:01:23]} Qd7 {[%emt 0:03:56]} 26. Kh2 {[%emt 0:00:34]} f5 {[%emt 0:04:45]} 27. Rg1 {[%emt 0:01:29]} fxe4 {[%emt 0:03:12]} 28. Qxe4 {[%emt 0:01:58]} Qf5 {[%emt 0:00:57]} 29. Qe3 {[%emt 0:03:25]} Bxd5 {[%emt 0:02:57]} 30. Ng3 {[%emt 0:00:40]} Qf4 {[%emt 0:01:38]} 31. Qd3 {[%emt 0:00:55]} Qxf2+ {[%emt 0:00:48]} 32. Rg2 {[%emt 0:00:13]} Qxg2# {[%emt 0:00:08]} 0-1

[Event "V Copa Marcel Duchamp 2022"]
[Site "Montevideo"]
[Date "2022.02.18"]
[Round "8.34"]
[White "Lanzilotta, Filippo"]
[Black "Visillac, Alejandro"]
[Result "1/2-1/2"]
[ECO "C01"]
[WhiteElo "1299"]
[BlackElo "1814"]
[Annotator "NA"]
[PlyCount "109"]
[EventDate "2022.02.12"]
[EventCountry "URU"]
[SourceTitle "playchess.com"]
[Source "ChessBase"]
[SourceQuality "1"]
[TimeControl "5400+30"]

1. e4 {[%emt 0:01:24]} e6 2. d4 {[%emt 0:01:26]} d5 {[%emt 0:00:28]} 3. exd5 {[%emt 0:00:10]} exd5 {[%emt 0:00:09]} 4. Nc3 {[%emt 0:00:13]} Nf6 {[%emt 0:00:12]} 5. Bd3 {[%emt 0:00:06]} Be7 {[%emt 0:00:23]} 6. Nge2 {[%emt 0:00:05]} Nc6 {[%emt 0:03:36]} 7. Bg5 {[%emt 0:00:45]} Nb4 {[%emt 0:00:48]} 8. h4 {[%emt 0:02:56]} h6 {[%emt 0:00:53]} 9. Bf4 {[%emt 0:00:40]} Nxd3+ 10. Qxd3 {[%emt 0:00:07]} c6 {[%emt 0:00:45]} 11. O-O-O {[%emt 0:00:11]} O-O {[%emt 0:03:23]} 12. Rdg1 $11 {[%emt 0:01:47]} Re8 {[%emt 0:04:50]} 13. f3 {[%emt 0:02:20]} Nh5 {[%emt 0:02:05]} 14. Bd2 {[%emt 0:01:15]} Nf6 {[%emt 0:02:44]} 15. g4 {[%emt 0:00:11]} Nh7 {[%emt 0:00:24]} 16. f4 Nf6 {[%emt 0:08:40]} 17. g5 {[%emt 0:03:02]} Ne4 {[%emt 0:00:27]} 18. gxh6 {[%emt 0:00:36]} Bf6 {[%emt 0:01:31]} 19. Nxe4 {[%emt 0:02:38]} Rxe4 {[%emt 0:01:50]} 20. Nc3 {[%emt 0:00:04]} Bf5 {[%emt 0:00:40]} 21. Nxe4 {[%emt 0:04:53]} Bxe4 {[%emt 0:00:17]} 22. Qe3 {[%emt 0:01:37]} Bxh1 {[%emt 0:01:30]} 23. Rxh1 {[%emt 0:00:08]} gxh6 {[%emt 0:08:46]} 24. f5 {[%emt 0:00:28]} Qf8 {[%emt 0:01:44]} 25. Qxh6 {[%emt 0:05:14]} Qxh6 {[%emt 0:00:27]} 26. Bxh6 {[%emt 0:00:12]} Bxd4 {[%emt 0:00:23]} 27. c3 {[%emt 0:00:56]} Be5 {[%emt 0:01:06]} 28. h5 {[%emt 0:02:54]} Kh7 {[%emt 0:01:15]} 29. Bg5 {[%emt 0:00:33]} Rg8 {[%emt 0:00:29]} 30. Re1 {[%emt 0:09:53]} f6 {[%emt 0:05:40]} 31. Be3 {[%emt 0:01:38]} a6 {[%emt 0:00:26]} 32. Bd4 {[%emt 0:02:13]} Re8 {[%emt 0:00:37]} 33. Bxe5 {[%emt 0:00:26]} fxe5 {[%emt 0:00:14]} 34. f6 {[%emt 0:00:30]} Kg8 {[%emt 0:00:28]} 35. h6 {[%emt 0:01:02]} Kf7 {[%emt 0:00:10]} 36. Rg1 {[%emt 0:04:04]} Kxf6 {[%emt 0:03:20]} 37. Rg7 {[%emt 0:00:08]} b6 {[%emt 0:00:58]} 38. Rb7 {[%emt 0:02:02]} Ke6 {[%emt 0:02:48]} 39. Rxb6 {[%emt 0:00:26]} Kd6 {[%emt 0:00:07]} 40. Rxa6 {[%emt 0:00:20]} Rh8 {[%emt 0:00:05]} 41. b4 {[%emt 0:01:03]} Rxh6 {[%emt 0:00:30]} 42. b5 {[%emt 0:00:12]} Kc5 {[%emt 0:00:25]} 43. bxc6 {[%emt 0:00:12]} Rxc6 {[%emt 0:00:23]} 44. Rxc6+ {[%emt 0:00:09]} Kxc6 {[%emt 0:00:04]} 45. Kd2 {[%emt 0:02:23]} Kc5 {[%emt 0:01:57]} 46. a4 {[%emt 0:04:58]} Kc4 {[%emt 0:12:31]} 47. Kc2 {[%emt 0:02:50]} e4 {[%emt 0:00:50]} 48. Kd2 {[%emt 0:00:13]} Kc5 {[%emt 0:00:08]} 49. Ke3 {[%emt 0:00:28]} Kc4 {[%emt 0:10:48]} 50. Kd2 {[%emt 0:00:12]} e3+ {[%emt 0:04:11]} 51. Kxe3 {[%emt 0:00:11]} Kxc3 52. a5 {[%emt 0:00:04]} d4+ {[%emt 0:00:17]} 53. Kf4 {[%emt 0:00:27]} d3 {[%emt 0:00:09]} 54. a6 {[%emt 0:00:09]} d2 {[%emt 0:00:12]} 55. a7 {[%emt 0:00:08]} 1/2-1/2

[Event "V Copa Marcel Duchamp 2022"]
[Site "Montevideo"]
[Date "2022.02.18"]
[Round "8.35"]
[White "Kulik, Nicolas"]
[Black "Masoller, Martin"]
[Result "1-0"]
[ECO "B63"]
[WhiteElo "1775"]
[BlackElo "1743"]
[Annotator "NA"]
[PlyCount "80"]
[EventDate "2022.02.12"]
[EventCountry "URU"]
[SourceTitle "playchess.com"]
[Source "ChessBase"]
[SourceQuality "1"]
[TimeControl "5400+30"]

1. e4 c5 2. Nf3 {[%emt 0:00:06]} Nc6 {[%emt 0:02:06]} 3. d4 {[%emt 0:00:00]} cxd4 4. Nxd4 Nf6 {[%emt 0:00:09]} 5. Nc3 {[%emt 0:00:12]} d6 {[%emt 0:00:14]} 6. Bg5 {[%emt 0:00:11]} e6 {[%emt 0:01:10]} 7. Qd2 {[%emt 0:01:00]} h6 {[%emt 0:03:26]} 8. Bxf6 {[%emt 0:02:09]} Qxf6 {[%emt 0:00:50]} 9. O-O-O {[%emt 0:00:32]} Qxd4 {[%emt 0:01:58]} 10. Qxd4 {[%emt 0:00:07]} Nxd4 {[%emt 0:00:10]} 11. Rxd4 {[%emt 0:00:07]} a6 {[%emt 0:00:02]} 12. Bc4 {[%emt 0:01:59]} b5 {[%emt 0:03:10]} 13. Bb3 {[%emt 0:00:21]} Rb8 {[%emt 0:03:22]} 14. Rhd1 {[%emt 0:01:57]} Be7 {[%emt 0:04:07]} 15. Ne2 {[%emt 0:03:33]} O-O {[%emt 0:04:35]} 16. c3 {[%emt 0:01:24]} Bb7 {[%emt 0:03:11]} 17. f3 {[%emt 0:00:53]} Rfc8 {[%emt 0:02:37]} 18. Kd2 {[%emt 0:02:58]} a5 {[%emt 0:04:40]} 19. Ke1 {[%emt 0:15:42]} a4 {[%emt 0:10:06]} 20. Bc2 {[%emt 0:00:19]} d5 {[%emt 0:01:56]} 21. exd5 {[%emt 0:04:04]} Bxd5 {[%emt 0:00:36]} 22. a3 {[%emt 0:01:41]} Bc6 {[%emt 0:08:12]} 23. Ng3 {[%emt 0:01:50]} f5 {[%emt 0:03:50]} 24. Bb1 {[%emt 0:03:24]} Bc5 {[%emt 0:00:55]} 25. R4d2 {[%emt 0:02:21]} Kf7 {[%emt 0:07:55]} 26. Ba2 {[%emt 0:00:39]} Kf6 {[%emt 0:01:16]} 27. Re2 {[%emt 0:08:51]} e5 {[%emt 0:08:48]} 28. Bd5 {[%emt 0:08:51]} g6 {[%emt 0:01:54]} 29. Bxc6 {[%emt 0:04:01]} Rxc6 {[%emt 0:00:06]} 30. Red2 {[%emt 0:01:11]} Re8 {[%emt 0:02:45]} 31. Ke2 {[%emt 0:02:03]} h5 {[%emt 0:00:40]} 32. Rd7 {[%emt 0:02:50]} Ree6 {[%emt 0:04:54]} 33. R1d5 {[%emt 0:00:19]} Bg1 {[%emt 0:01:26]} 34. h4 {[%emt 0:01:46]} Rb6 {[%emt 0:02:27]} 35. Rd8 {[%emt 0:03:53]} Re7 {[%emt 0:02:39]} 36. Rd1 {[%emt 0:01:38]} Bc5 {[%emt 0:00:28]} 37. Rc8 {[%emt 0:01:30]} Bd6 {[%emt 0:00:29]} 38. Rf8+ {[%emt 0:01:20]} Ke6 {[%emt 0:00:46]} 39. Rg8 {[%emt 0:00:10]} Kf7 {[%emt 0:00:19]} 40. Rd8 {[%emt 0:00:23]} Ke6 {[%emt 0:00:44]} 1-0

[Event "V Copa Marcel Duchamp 2022"]
[Site "Montevideo"]
[Date "2022.02.18"]
[Round "8.36"]
[White "Zaruski, Julio"]
[Black "Martello, Benjamin"]
[Result "1-0"]
[ECO "C00"]
[WhiteElo "1764"]
[BlackElo "1594"]
[Annotator "NA"]
[PlyCount "93"]
[EventDate "2022.02.12"]
[EventCountry "URU"]
[SourceTitle "playchess.com"]
[Source "ChessBase"]
[SourceQuality "1"]
[TimeControl "5400+30"]

1. e4 {[%emt 0:00:04]} e6 {[%emt 0:00:03]} 2. Qe2 {[%emt 0:02:09]} e5 {[%emt 0:00:17]} 3. g3 {[%emt 0:00:40]} Nf6 {[%emt 0:00:54]} 4. Bg2 {[%emt 0:00:11]} Bc5 {[%emt 0:00:15]} 5. d3 {[%emt 0:00:30]} O-O {[%emt 0:00:30]} 6. Be3 {[%emt 0:01:42]} Bb6 {[%emt 0:00:00]} 7. Nf3 {[%emt 0:01:23]} Re8 {[%emt 0:00:12]} 8. O-O {[%emt 0:01:08]} c6 {[%emt 0:00:27]} 9. c4 Bc7 {[%emt 0:02:36]} 10. Nc3 {[%emt 0:08:33]} d6 {[%emt 0:01:49]} 11. h3 {[%emt 0:00:33]} h6 {[%emt 0:00:32]} 12. d4 {[%emt 0:02:19]} exd4 {[%emt 0:00:26]} 13. Nxd4 {[%emt 0:00:08]} Nbd7 {[%emt 0:01:42]} 14. Qc2 {[%emt 0:03:39]} Nc5 {[%emt 0:01:45]} 15. b4 {[%emt 0:01:05]} Ne6 {[%emt 0:00:09]} 16. Rad1 {[%emt 0:03:40]} Qe7 {[%emt 0:01:05]} 17. Nf5 {[%emt 0:02:11]} Qf8 {[%emt 0:00:12]} 18. f4 {[%emt 0:05:10]} Rd8 {[%emt 0:03:51]} 19. Qf2 {[%emt 0:04:54]} b6 {[%emt 0:02:24]} 20. g4 {[%emt 0:02:06]} a5 {[%emt 0:06:15]} 21. b5 {[%emt 0:00:42]} c5 {[%emt 0:00:21]} 22. e5 {[%emt 0:01:33]} d5 {[%emt 0:01:55]} 23. exf6 {[%emt 0:00:48]} d4 {[%emt 0:00:12]} 24. Bxa8 {[%emt 0:00:51]} dxe3 {[%emt 0:00:16]} 25. Qxe3 {[%emt 0:01:07]} Rxd1 {[%emt 0:00:42]} 26. Nxd1 {[%emt 0:00:27]} Bxf4 {[%emt 0:00:34]} 27. Rxf4 {[%emt 0:01:58]} Nxf4 {[%emt 0:00:10]} 28. Ne7+ {[%emt 0:00:09]} Kh7 {[%emt 0:00:23]} 29. Qxf4 {[%emt 0:01:30]} gxf6 {[%emt 0:00:23]} 30. Be4+ {[%emt 0:00:13]} f5 {[%emt 0:00:26]} 31. Nxf5 {[%emt 0:00:14]} Bxf5 {[%emt 0:00:17]} 32. Qxf5+ {[%emt 0:00:07]} Kg7 {[%emt 0:00:07]} 33. Nf2 {[%emt 0:09:09]} Qd6 {[%emt 0:00:17]} 34. Kg2 {[%emt 0:00:11]} a4 {[%emt 0:00:07]} 35. Nd3 {[%emt 0:01:50]} a3 {[%emt 0:00:19]} 36. Qe5+ {[%emt 0:01:43]} Qxe5 {[%emt 0:02:32]} 37. Nxe5 {[%emt 0:00:12]} h5 {[%emt 0:00:03]} 38. Kg3 {[%emt 0:00:19]} Kf6 {[%emt 0:00:08]} 39. Kf4 {[%emt 0:01:42]} hxg4 {[%emt 0:00:20]} 40. hxg4 {[%emt 0:00:13]} Ke6 {[%emt 0:00:15]} 41. Bd5+ {[%emt 0:00:22]} Ke7 {[%emt 0:00:16]} 42. Nxf7 {[%emt 0:00:09]} Kf8 43. Kf5 {[%emt 0:00:12]} Kg7 {[%emt 0:00:28]} 44. g5 {[%emt 0:00:08]} Kf8 {[%emt 0:00:00]} 45. Kf6 {[%emt 0:00:23]} Ke8 {[%emt 0:00:00]} 46. Ne5 {[%emt 0:00:27]} Kd8 {[%emt 0:00:13]} 47. Bf7 {[%emt 0:00:07]} 1-0